fUSD/lending_fUSD_20240826
["ID","MTS","AMOUNT","RATE_DAILY","PERIOD"]
[335965672,1724645451773,-9031.66202196,0.00011,2]
[335965674,1724645451783,-16599.86760446,0.00011,2]
[335965677,1724645451794,-2983.5989,0.00011,2]
[335965679,1724645451807,-336.21587999,0.00011,2]
[335965681,1724645451823,-473.16872116,0.00011,2]
[335965684,1724645451834,-573.43013765,0.00011,2]
[335965686,1724645451844,-500.0,0.00011,2]
[335965688,1724645451855,-1613.48867776,0.00011,2]
[335965690,1724645451866,-62003.14113327,0.00011,2]
[335965692,1724645451878,-3637.03078746,0.00011,2]
[335965694,1724645451889,-18489.299042,0.00011,2]
[335965697,1724645451902,-4017.62324958,0.00011,2]
[335965699,1724645451915,-663.02749647,0.00011,2]
[335965701,1724645451926,-1370.5674735,0.00011,2]
[335965703,1724645451938,-748.82902201,0.00011,2]
[335965706,1724645451949,-275.5687984,0.00011,2]
[335965708,1724645451960,-78658.03237406,0.00011,2]
[335965710,1724645451971,-3765.69953211,0.00011,2]
[335965712,1724645451985,-3024.95,0.00011,2]
[335967523,1724645486620,167.01,9.851e-05,2]
[335967524,1724645508750,504.01565093,8.22e-05,2]
[335967525,1724645509451,700.0,8.22e-05,2]
[335967526,1724645510305,600.0,8.22e-05,2]
[335967527,1724645511069,700.0,9.59e-05,2]
[335967528,1724645511944,600.0,9.59e-05,2]
[335967530,1724645621615,497.77,8.219e-05,2]
[335967537,1724645781163,1050.0,0.0001,2]
[335967542,1724645870572,6599.89,0.00017,90]
[335967543,1724645890035,1000.0,9.844e-05,2]
[335967549,1724645994113,167.04,9.846e-05,2]
[335967555,1724646199772,472.88,8.219e-05,2]
[335967563,1724646281909,160.0,8.219e-05,2]
[335967567,1724646435792,200.0,9.858e-05,2]
[335967569,1724646470626,182.4,9.86e-05,2]
[335967587,1724646568980,773.04637192,0.00010009,2]
[335967591,1724646594402,1195.02653304,0.00010009,2]
[335967599,1724646632188,-156.05922934,0.00010026,2]
[335967601,1724646632198,-160.0,0.0001003,2]
[335967603,1724646632207,-796.07378855,0.000101,2]
[335967604,1724646632218,-490.636124,0.00010405,2]
[335967605,1724646632230,-300.06525635,0.00010405,2]
[335967606,1724646632239,-51.89474365,0.00010469,2]
[335967607,1724646632251,-420.98525635,0.00010469,2]
[335967608,1724646632260,-4.3149063,0.00010471,2]
[335967609,1724646632271,-2142.62768658,0.00010471,2]
[335967610,1724646632280,-211.76537602,0.00010471,2]
[335967611,1724646632290,-1450.02167992,0.00010505,2]
[335967612,1724646632301,-1230.78807392,0.00010505,2]
[335967613,1724646632312,-1075.9549519,0.00010505,2]
[335967614,1724646632324,-1839.77638557,0.00010505,2]
[335967615,1724646632334,-40.07589993,0.00010566,2]
[335967616,1724646632345,-439.35,0.00010566,2]
[335967617,1724646632357,-268.07010932,0.00010566,2]
[335967618,1724646632368,-1378.29577402,0.00010566,2]
[335967619,1724646632379,-226.07536404,0.00010566,2]
[335967620,1724646632389,-51.43344138,0.00010698,2]
[335967621,1724646632401,-248.56655862,0.00010698,2]
[335967622,1724646632410,-300.0,0.00010698,2]
[335967623,1724646632420,-1500.0,0.00010699,2]
[335967624,1724646632429,-189.78172834,0.00010713,2]
[335967625,1724646632439,-893.76010545,0.00010713,2]
[335967626,1724646632449,-150.0,0.00010728,2]
[335967627,1724646632458,-150.0,0.00010728,2]
[335967628,1724646632467,-150.0,0.00010731,2]
[335967629,1724646632477,-150.0,0.00010733,2]
[335967630,1724646632487,-150.0,0.00010733,2]
[335967631,1724646632496,-73.85873087,0.00010736,2]
[335967632,1724646632522,-76.14126913,0.00010736,2]
[335967633,1724646632531,-150.0,0.00010739,2]
[335967634,1724646632540,-150.0,0.00010739,2]
[335967635,1724646632550,-150.0,0.00010741,2]
[335967636,1724646632559,-150.0,0.00010741,2]
[335967637,1724646632570,-150.0,0.00010745,2]
[335967638,1724646632580,-33.19595302,0.00010745,2]
[335967640,1724646632592,-116.80404698,0.00010745,2]
[335967641,1724646632601,-150.0,0.00010746,2]
[335967643,1724646632611,-150.0,0.00010751,2]
[335967645,1724646632619,-150.0,0.00010755,2]
[335967647,1724646632629,-150.0,0.00010757,2]
[335967649,1724646632639,-150.0,0.0001076,2]
[335967651,1724646632652,-150.0,0.0001076,2]
[335967653,1724646632660,-150.0,0.00010761,2]
[335967654,1724646632669,-150.0,0.00010764,2]
[335967655,1724646632679,-150.0,0.00010768,2]
[335967657,1724646632688,-150.0,0.00010768,2]
[335967659,1724646632698,-150.0,0.00010771,2]
[335967661,1724646632708,-150.0,0.00010771,2]
[335967662,1724646632717,-150.0,0.00010776,2]
[335967663,1724646632727,-150.0,0.00010777,2]
[335967664,1724646632736,-3427.8446,0.0001078,2]
[335967665,1724646632748,-421.55839924,0.0001078,2]
[335967666,1724646632766,-3042.43808527,0.0001078,2]
[335967667,1724646632775,-150.0,0.00010781,2]
[335967668,1724646632784,-150.0,0.00010789,2]
[335967669,1724646632793,-150.0,0.0001079,2]
[335967670,1724646632803,-150.0,0.00010793,2]
[335967671,1724646632812,-150.0,0.00010794,2]
[335967672,1724646632822,-155.94399844,0.000108,2]
[335967673,1724646632832,-150.0,0.000108,2]
[335967674,1724646632841,-150.0,0.00010804,2]
[335967675,1724646632850,-150.0,0.00010809,2]
[335967676,1724646632860,-150.0,0.0001081,2]
[335967677,1724646632869,-150.0,0.00010811,2]
[335967678,1724646632878,-150.0,0.00010811,2]
[335967679,1724646632888,-150.0,0.00010831,2]
[335967680,1724646632897,-150.0,0.00010831,2]
[335967681,1724646632906,-150.0,0.00010832,2]
[335967682,1724646632915,-150.0,0.00010832,2]
[335967683,1724646632925,-150.0,0.00010836,2]
[335967684,1724646632934,-150.0,0.00010838,2]
[335967685,1724646632943,-150.0,0.00010841,2]
[335967686,1724646632952,-150.0,0.00010841,2]
[335967687,1724646632962,-150.0,0.00010844,2]
[335967688,1724646632971,-962.968511,0.00010852,2]
[335967689,1724646632981,-150.0,0.00010861,2]
[335967690,1724646632989,-202.24661551,0.00010862,2]
[335967691,1724646632998,-164.21983222,0.00010862,2]
[335967692,1724646633007,-150.0,0.00010864,2]
[335967693,1724646633016,-150.0,0.00010866,2]
[335967694,1724646633026,-150.0,0.00010878,2]
[335967695,1724646633035,-150.0,0.00010878,2]
[335967696,1724646633045,-150.0,0.00010879,2]
[335967697,1724646633054,-150.0,0.00010883,2]
[335967698,1724646633063,-150.0,0.00010884,2]
[335967699,1724646633073,-150.0,0.00010885,2]
[335967700,1724646633083,-1984.99338653,0.00010886,2]
[335967701,1724646633092,-166.94308285,0.00010888,2]
[335967702,1724646633102,-156.25367955,0.00010888,2]
[335967703,1724646633110,-150.0,0.00010889,2]
[335967704,1724646633119,-430.00173,0.0001089,2]
[335967705,1724646633129,-156.00431542,0.0001089,2]
[335967706,1724646633138,-237.62979413,0.0001089,2]
[335967707,1724646633147,-435.07539557,0.0001089,2]
[335967708,1724646633156,-378.70661734,0.0001089,2]
[335967709,1724646633165,-5621.3829,0.0001089,2]
[335967710,1724646633175,-150.0,0.00010895,2]
[335967711,1724646633184,-150.0,0.00010895,2]
[335967712,1724646633193,-312.7375994,0.00010896,2]
[335967713,1724646633205,-622.0,0.00010896,2]
[335967714,1724646633216,-1517.42729465,0.00010896,2]
[335967715,1724646633226,-939.82724979,0.00010896,2]
[335967716,1724646633238,-3494.76952503,0.00010896,2]
[335967717,1724646633249,-456.71996094,0.00010896,2]
[335967718,1724646633260,-1875.21575666,0.00010896,2]
[335967719,1724646638207,-156.03460191,0.00010862,2]
[335967720,1724646638216,-2043.99890735,0.00010896,2]
[335967721,1724646638227,-351.92,0.00010896,2]
[335967722,1724646638262,-423.10202108,0.00010896,2]
[335967723,1724646638273,-698.46349581,0.00010896,2]
[335967724,1724646638285,-656.98618929,0.00010896,2]
[335967725,1724646638296,-2381.70182341,0.00010896,2]
[335967726,1724646638308,-1697.09681295,0.00010896,2]
[335967727,1724646638374,-744.74833634,0.00010896,2]
[335967728,1724646638384,-2510.72,0.00010896,2]
[335967729,1724646638397,-5167.1540273,0.00010896,2]
[335967730,1724646638406,-292.5137,0.00010896,2]
[335967731,1724646638415,-247.9946,0.00010896,2]
[335967732,1724646638425,-1000.0,0.00010896,2]
[335967733,1724646638434,-150.0,0.00010896,2]
[335967734,1724646638444,-150.0,0.00010896,2]
[335967735,1724646638453,-3204.28859472,0.00010896,2]
[335967736,1724646638462,-718.3116,0.00010898,2]
[335967737,1724646638471,-845.0700768,0.00010898,2]
[335967738,1724646638483,-582.24356216,0.00010898,2]
[335967739,1724646638495,-561.82928208,0.00010898,2]
[335967740,1724646638516,-2757.09477896,0.00010898,2]
[335967741,1724646638525,-1510.82539909,0.00010899,2]
[335967742,1724646638535,-1148.8881,0.000109,2]
[335967743,1724646638545,-150.0,0.000109,2]
[335967744,1724646638555,-791.05,0.000109,2]
[335967745,1724646638564,-426.95,0.000109,2]
[335967746,1724646638573,-413.03,0.000109,2]
[335967747,1724646638582,-426.95,0.000109,2]
[335967748,1724646638592,-1098.0,0.000109,2]
[335967749,1724646638601,-170.47038926,0.000109,2]
[335967750,1724646638611,-170.47038921,0.000109,2]
[335967751,1724646638620,-170.47038921,0.000109,2]
[335967752,1724646638629,-170.47038921,0.000109,2]
[335967753,1724646638638,-170.47038921,0.000109,2]
[335967754,1724646638649,-170.47038921,0.000109,2]
[335967755,1724646638660,-170.47038921,0.000109,2]
[335967756,1724646638670,-150.0,0.00010902,2]
[335967757,1724646638823,-150.0,0.00010904,2]
[335967759,1724646638836,-150.0,0.00010905,2]
[335967761,1724646638846,-150.0,0.00010907,2]
[335967763,1724646638855,-150.0,0.00010909,2]
[335967765,1724646638866,-500.0,0.00010912,2]
[335967767,1724646638875,-150.0,0.00010912,2]
[335967769,1724646638885,-150.0,0.00010912,2]
[335967771,1724646638894,-150.0,0.00010914,2]
[335967773,1724646638904,-150.0,0.00010915,2]
[335967775,1724646638913,-189.758,0.00010915,2]
[335967777,1724646638923,-150.0,0.00010917,2]
[335967779,1724646638933,-150.0,0.00010917,2]
[335967781,1724646638943,-150.0,0.0001092,2]
[335967783,1724646638952,-150.0,0.00010922,2]
[335967784,1724646638961,-150.0,0.00010923,2]
[335967786,1724646638970,-150.0,0.00010923,2]
[335967788,1724646638979,-150.0,0.00010924,2]
[335967790,1724646638989,-150.0,0.00010931,2]
[335967792,1724646638998,-150.0,0.00010932,2]
[335967794,1724646639007,-150.0,0.00010939,2]
[335967796,1724646639016,-150.0,0.00010943,2]
[335967798,1724646639026,-150.0,0.00010948,2]
[335967800,1724646639035,-150.0,0.00010951,2]
[335967802,1724646639045,-150.0,0.00010954,2]
[335967804,1724646639054,-150.0,0.00010955,2]
[335967806,1724646639063,-150.0,0.00010956,2]
[335967808,1724646639072,-204.84,0.00010959,2]
[335967810,1724646639081,-4405.62,0.00010959,2]
[335967812,1724646639090,-589.53,0.00010959,2]
[335967814,1724646639099,-250.0,0.00010959,2]
[335967816,1724646639109,-2000.0,0.00010959,2]
[335967818,1724646639118,-154.67,0.00010959,2]
[335967820,1724646639128,-150.0,0.00010959,2]
[335967822,1724646639137,-700.0,0.0001096,2]
[335967824,1724646639146,-600.0,0.0001096,2]
[335967826,1724646639156,-150.0,0.00010965,2]
[335967828,1724646639166,-150.0,0.00010965,2]
[335967830,1724646639175,-150.0,0.00010966,2]
[335967832,1724646639184,-150.0,0.00010966,2]
[335967834,1724646639193,-150.0,0.00010966,2]
[335967836,1724646639202,-150.0,0.00010967,2]
[335967838,1724646639212,-150.0,0.0001097,2]
[335967840,1724646639221,-150.0,0.00010972,2]
[335967842,1724646639230,-400.0,0.00010973,2]
[335967844,1724646639239,-188.937186,0.00010973,2]
[335967846,1724646639249,-150.0,0.00010979,2]
[335967848,1724646639257,-593.0,0.00010985,2]
[335967850,1724646639267,-150.0,0.00010985,2]
[335967852,1724646639276,-150.0,0.00010987,2]
[335967854,1724646639285,-3390.49701459,0.00010987,2]
[335967856,1724646639295,-150.0,0.00010989,2]
[335967858,1724646639303,-500.0,0.00010989,2]
[335967860,1724646639312,-500.0,0.00010989,2]
[335967862,1724646639322,-497.71370419,0.00010989,2]
[335967864,1724646639331,-500.0,0.00010989,2]
[335967866,1724646639340,-500.0,0.00010989,2]
[335967868,1724646639349,-500.0,0.00010989,2]
[335967870,1724646639358,-500.0,0.00010989,2]
[335967872,1724646639367,-500.0,0.00010989,2]
[335967873,1724646639376,-500.0,0.00010989,2]
[335967875,1724646639385,-500.0,0.00010989,2]
[335967877,1724646639394,-500.0,0.00010989,2]
[335967879,1724646639403,-470.25018713,0.00010989,2]
[335967881,1724646639413,-500.0,0.00010989,2]
[335967883,1724646639421,-500.0,0.00010989,2]
[335967885,1724646639431,-500.0,0.00010989,2]
[335967887,1724646639440,-500.0,0.00010989,2]
[335967889,1724646639449,-500.0,0.00010989,2]
[335967891,1724646639458,-500.0,0.00010989,2]
[335967893,1724646639468,-500.0,0.00010989,2]
[335967895,1724646639477,-500.0,0.00010989,2]
[335967897,1724646639486,-500.0,0.00010989,2]
[335967899,1724646639496,-500.0,0.00010989,2]
[335967901,1724646639505,-500.0,0.00010989,2]
[335967903,1724646639514,-500.0,0.00010989,2]
[335967905,1724646639524,-500.0,0.00010989,2]
[335967907,1724646639533,-500.0,0.00010989,2]
[335967909,1724646639543,-500.0,0.00010989,2]
[335967911,1724646639552,-500.0,0.00010989,2]
[335967913,1724646639561,-500.0,0.00010989,2]
[335967915,1724646639571,-500.0,0.00010989,2]
[335967917,1724646639581,-500.0,0.00010989,2]
[335967919,1724646639591,-500.0,0.00010989,2]
[335967921,1724646639600,-500.0,0.00010989,2]
[335967923,1724646639609,-500.0,0.00010989,2]
[335967925,1724646639619,-500.0,0.00010989,2]
[335967927,1724646639628,-500.0,0.00010989,2]
[335967929,1724646639638,-505.96360936,0.00010989,2]
[335967931,1724646639649,-501.00245649,0.00010989,2]
[335967933,1724646639659,-500.0,0.00010989,2]
[335967934,1724646639669,-500.0,0.00010989,2]
[335967936,1724646639678,-500.0,0.00010989,2]
[335967938,1724646639688,-520.36027492,0.00010989,2]
[335967940,1724646639697,-647.77668145,0.00010989,2]
[335967942,1724646639707,-500.0,0.00010989,2]
[335967945,1724646639716,-500.0,0.00010989,2]
[335967946,1724646639726,-500.0,0.00010989,2]
[335967949,1724646639735,-500.0,0.00010989,2]
[335967951,1724646639745,-500.0,0.00010989,2]
[335967953,1724646639754,-500.0,0.00010989,2]
[335967955,1724646639763,-176.38368578,0.00010989,2]
[335967957,1724646639772,-500.0,0.00010989,2]
[335967959,1724646639782,-500.0,0.00010989,2]
[335967961,1724646639791,-500.0,0.00010989,2]
[335967962,1724646639800,-500.0,0.00010989,2]
[335967964,1724646639810,-500.0,0.00010989,2]
[335967966,1724646639819,-500.0,0.00010989,2]
[335967968,1724646639829,-500.0,0.00010989,2]
[335967970,1724646639838,-546.79904646,0.00010989,2]
[335967972,1724646639847,-544.16195713,0.00010989,2]
[335967974,1724646639857,-538.43239731,0.00010989,2]
[335967976,1724646639866,-316.06743312,0.00010989,2]
[335967978,1724646639875,-404.54589342,0.00010989,2]
[335967980,1724646639885,-165.35762377,0.00010989,2]
[335967982,1724646639894,-497.9317964,0.00010989,2]
[335967984,1724646639904,-280.69370955,0.00010989,2]
[335967986,1724646639913,-631.43,0.00010989,2]
[335967988,1724646639922,-631.43,0.00010989,2]
[335967990,1724646639931,-631.43,0.00010989,2]
[335967992,1724646639941,-631.43,0.00010989,2]
[335967994,1724646639950,-631.43,0.00010989,2]
[335967996,1724646639959,-631.43,0.00010989,2]
[335967998,1724646639968,-631.43,0.00010989,2]
[335967999,1724646639978,-631.43,0.00010989,2]
[335968000,1724646639987,-2225.42,0.00010989,2]
[335968001,1724646639995,-2225.42,0.00010989,2]
[335968002,1724646640005,-2225.42,0.00010989,2]
[335968003,1724646640014,-2225.42,0.00010989,2]
[335968004,1724646640023,-2225.42,0.00010989,2]
[335968005,1724646640033,-2225.42,0.00010989,2]
[335968006,1724646640042,-2225.42,0.00010989,2]
[335968007,1724646640052,-2225.42,0.00010989,2]
[335968008,1724646640061,-500.0,0.00010989,2]
[335968009,1724646640070,-500.0,0.00010989,2]
[335968010,1724646640080,-500.0,0.00010989,2]
[335968011,1724646640089,-500.0,0.00010989,2]
[335968012,1724646640098,-500.0,0.00010989,2]
[335968013,1724646640108,-500.0,0.00010989,2]
[335968014,1724646640117,-500.0,0.00010989,2]
[335968015,1724646640126,-500.0,0.00010989,2]
[335968016,1724646640135,-500.0,0.00010989,2]
[335968017,1724646640145,-500.0,0.00010989,2]
[335968018,1724646640154,-500.0,0.00010989,2]
[335968019,1724646640164,-686.98,0.00010989,2]
[335968020,1724646640173,-500.0,0.00010989,2]
[335968021,1724646640183,-686.98,0.00010989,2]
[335968023,1724646640192,-686.98,0.00010989,2]
[335968025,1724646640202,-562.285,0.00010989,2]
[335968027,1724646640211,-686.98,0.00010989,2]
[335968029,1724646640220,-686.98,0.00010989,2]
[335968031,1724646640229,-686.98,0.00010989,2]
[335968034,1724646640238,-686.98,0.00010989,2]
[335968036,1724646640247,-686.98,0.00010989,2]
[335968038,1724646640257,-3070.74,0.00010989,2]
[335968040,1724646640266,-3070.74,0.00010989,2]
[335968042,1724646640275,-3070.74,0.00010989,2]
[335968044,1724646640284,-3070.74,0.00010989,2]
[335968046,1724646640294,-3070.74,0.00010989,2]
[335968048,1724646640303,-3070.74,0.00010989,2]
[335968050,1724646640311,-3070.74,0.00010989,2]
[335968052,1724646640320,-3070.74,0.00010989,2]
[335968053,1724646640330,-742.72,0.00010989,2]
[335968055,1724646640339,-742.72,0.00010989,2]
[335968057,1724646640348,-742.72,0.00010989,2]
[335968059,1724646640357,-742.72,0.00010989,2]
[335968061,1724646640366,-742.72,0.00010989,2]
[335968063,1724646640376,-742.72,0.00010989,2]
[335968065,1724646640385,-742.72,0.00010989,2]
[335968067,1724646640394,-742.72,0.00010989,2]
[335968069,1724646640404,-22352.13,0.00010989,2]
[335968071,1724646640413,-22352.13,0.00010989,2]
[335968073,1724646640422,-22352.13,0.00010989,2]
[335968075,1724646640432,-22352.13,0.00010989,2]
[335968077,1724646640443,-22352.13,0.00010989,2]
[335968079,1724646640452,-22352.13,0.00010989,2]
[335968081,1724646640461,-22352.13,0.00010989,2]
[335968083,1724646640470,-22352.13,0.00010989,2]
[335968085,1724646640480,-2813.365987,0.00010989,2]
[335968087,1724646640489,-500.0,0.00010989,2]
[335968089,1724646640498,-500.0,0.00010989,2]
[335968091,1724646640508,-500.0,0.00010989,2]
[335968093,1724646640517,-583.80608523,0.00010989,2]
[335968095,1724646640526,-7667.73,0.00010989,2]
[335968097,1724646640536,-500.0,0.00010989,2]
[335968099,1724646640545,-7667.73,0.00010989,2]
[335968101,1724646640554,-500.0,0.00010989,2]
[335968103,1724646640564,-7667.73,0.00010989,2]
[335968105,1724646640573,-500.0,0.00010989,2]
[335968107,1724646640582,-7667.73,0.00010989,2]
[335968109,1724646640592,-555.17414038,0.00010989,2]
[335968111,1724646640601,-7667.73,0.00010989,2]
[335968113,1724646640611,-7667.73,0.00010989,2]
[335968115,1724646640620,-7667.73,0.00010989,2]
[335968117,1724646640629,-7667.73,0.00010989,2]
[335968119,1724646640639,-1941841.66210533,0.0001099,3]
[335968121,1724646640652,-150.0,0.00010992,2]
[335968123,1724646640661,-155.0,0.00010993,2]
[335968125,1724646640671,-150.0,0.00010994,2]
[335968127,1724646640680,-500.0,0.00010994,2]
[335968129,1724646640689,-500.0,0.00010994,2]
[335968130,1724646640698,-500.0,0.00010994,2]
[335968132,1724646640707,-500.0,0.00010994,2]
[335968134,1724646640716,-631.43,0.00010994,2]
[335968136,1724646640726,-2225.42,0.00010994,2]
[335968138,1724646640735,-500.0,0.00010994,2]
[335968140,1724646640745,-686.98,0.00010994,2]
[335968142,1724646640755,-3070.74,0.00010994,2]
[335968144,1724646640764,-742.72,0.00010994,2]
[335968146,1724646640774,-22352.13,0.00010994,2]
[335968148,1724646640783,-7667.73,0.00010994,2]
[335968150,1724646640792,-304.14178982,0.00010995,2]
[335968152,1724646640801,-452.96682687,0.00010995,2]
[335968154,1724646640811,-254.66103438,0.00010995,2]
[335968156,1724646640820,-500.0,0.00010995,2]
[335968158,1724646640831,-500.0,0.00010995,2]
[335968160,1724646640840,-172.77776436,0.00010995,2]
[335968162,1724646640850,-186.02441924,0.00010995,2]
[335968164,1724646640859,-451.0716464,0.00010995,2]
[335968166,1724646640870,-341.18346158,0.00010995,2]
[335968168,1724646640879,-500.0,0.00010995,2]
[335968170,1724646640888,-503.01882226,0.00010995,2]
[335968172,1724646640898,-5408.01,0.00010995,2]
[335968174,1724646640907,-500.0,0.00010995,2]
[335968176,1724646640916,-500.0,0.00010995,2]
[335968178,1724646640926,-341.17173459,0.00010995,2]
[335968180,1724646640935,-247.42247525,0.00010995,2]
[335968182,1724646640944,-326.04598238,0.00010995,2]
[335968184,1724646640954,-9957.1,0.00010995,2]
[335968186,1724646640963,-10745.55,0.00010995,2]
[335968188,1724646640973,-11173.19,0.00010995,2]
[335968190,1724646640983,-8593.1,0.00010995,2]
[335968192,1724646640993,-3118.38,0.00010995,2]
[335968194,1724646641003,-2887.87,0.00010995,2]
[335968196,1724646641012,-2664.41,0.00010995,2]
[335968198,1724646641021,-500.0,0.00010995,2]
[335968200,1724646641031,-254.91795896,0.00010995,2]
[335968202,1724646641040,-500.0,0.00010995,2]
[335968204,1724646641049,-500.0,0.00010995,2]
[335968206,1724646641059,-306.30236909,0.00010995,2]
[335968208,1724646641068,-500.0,0.00010995,2]
[335968210,1724646641078,-500.0,0.00010995,2]
[335968212,1724646641087,-2410.87,0.00010995,2]
[335968214,1724646641096,-452.16345228,0.00010995,2]
[335968216,1724646641105,-291.0532555,0.00010995,2]
[335968218,1724646641115,-443.7390475,0.00010995,2]
[335968220,1724646641124,-397.95119915,0.00010995,2]
[335968222,1724646641133,-243.04879359,0.00010995,2]
[335968224,1724646641142,-500.0,0.00010995,2]
[335968226,1724646641151,-192.8606598,0.00010995,2]
[335968228,1724646641161,-613.75773922,0.00010995,2]
[335968230,1724646641170,-500.0,0.00010995,2]
[335968232,1724646641179,-500.0,0.00010995,2]
[335968234,1724646641189,-500.0,0.00010995,2]
[335968236,1724646641198,-631.43,0.00010995,2]
[335968238,1724646641207,-2225.42,0.00010995,2]
[335968240,1724646641216,-500.0,0.00010995,2]
[335968242,1724646641225,-500.0,0.00010995,2]
[335968244,1724646641234,-7230.49,0.00010995,2]
[335968246,1724646641243,-7230.49,0.00010995,2]
[335968248,1724646641252,-500.0,0.00010995,2]
[335968250,1724646641262,-686.98,0.00010995,2]
[335968252,1724646641271,-3070.74,0.00010995,2]
[335968254,1724646641281,-500.0,0.00010995,2]
[335968256,1724646641291,-4119.83,0.00010995,2]
[335968258,1724646641300,-546.8760214,0.00010995,2]
[335968259,1724646641309,-13149.12,0.00010995,2]
[335968261,1724646641318,-742.72,0.00010995,2]
[335968263,1724646641328,-366.14696139,0.00010995,2]
[335968265,1724646641337,-6019.84,0.00010995,2]
[335968267,1724646641347,-22352.13,0.00010995,2]
[335968269,1724646641356,-500.0,0.00010995,2]
[335968271,1724646641366,-1733.38,0.00010995,2]
[335968273,1724646641375,-870.18,0.00010995,2]
[335968275,1724646641385,-7667.73,0.00010995,2]
[335968277,1724646641395,-518.615201,0.00010996,2]
[335968279,1724646641404,-500.0,0.00010996,2]
[335968281,1724646641413,-515.84580869,0.00010996,2]
[335968283,1724646641424,-518.40456606,0.00010996,2]
[335968285,1724646641433,-500.0,0.00010996,2]
[335968287,1724646641443,-150.0,0.00010996,2]
[335968289,1724646641453,-150.0,0.00010996,2]
[335968291,1724646641462,-156.96347571,0.00010996,2]
[335968293,1724646641471,-334.26393434,0.00010996,2]
[335968295,1724646641481,-593.09546935,0.00010996,2]
[335968297,1724646641490,-313.86844904,0.00010996,2]
[335968299,1724646641499,-433.9418917,0.00010996,2]
[335968301,1724646641508,-500.0,0.00010996,2]
[335968303,1724646641518,-5408.01,0.00010996,2]
[335968305,1724646641527,-5408.01,0.00010996,2]
[335968307,1724646641537,-5408.01,0.00010996,2]
[335968309,1724646641547,-5408.01,0.00010996,2]
[335968310,1724646641556,-500.0,0.00010996,2]
[335968312,1724646641565,-500.0,0.00010996,2]
[335968314,1724646641576,-500.0,0.00010996,2]
[335968317,1724646641596,-500.0,0.00010996,2]
[335968319,1724646641605,-500.0,0.00010996,2]
[335968321,1724646641614,-500.0,0.00010996,2]
[335968323,1724646641623,-500.0,0.00010996,2]
[335968325,1724646641632,-500.0,0.00010996,2]
[335968327,1724646641641,-335.38647777,0.00010996,2]
[335968329,1724646641654,-500.0,0.00010996,2]
[335968331,1724646641663,-9957.1,0.00010996,2]
[335968333,1724646641673,-9957.1,0.00010996,2]
[335968335,1724646641683,-9957.1,0.00010996,2]
[335968348,1724646641692,-10745.55,0.00010996,2]
[335968350,1724646641815,-10745.55,0.00010996,2]
[335968352,1724646641824,-10745.55,0.00010996,2]
[335968354,1724646641834,-10745.55,0.00010996,2]
[335968356,1724646641844,-11173.19,0.00010996,2]
[335968358,1724646641853,-11173.19,0.00010996,2]
[335968360,1724646641863,-11173.19,0.00010996,2]
[335968362,1724646641873,-8593.1,0.00010996,2]
[335968364,1724646641882,-3118.38,0.00010996,2]
[335968366,1724646641891,-8593.1,0.00010996,2]
[335968368,1724646641900,-3118.38,0.00010996,2]
[335968370,1724646641910,-8593.1,0.00010996,2]
[335968372,1724646641919,-3118.38,0.00010996,2]
[335968374,1724646641928,-2887.87,0.00010996,2]